fUST/lending_fUST_20240722
["ID","MTS","AMOUNT","RATE_DAILY","PERIOD"]
[332858256,1721589041486,-500.0,0.00013698,2]
[332858257,1721589041495,-500.0,0.00013698,2]
[332858258,1721589041507,-500.0,0.00013698,2]
[332858259,1721589041517,-327.41,0.00013698,2]
[332858260,1721589041528,-500.0,0.00013698,2]
[332858261,1721589041538,-500.0,0.00013698,2]
[332858262,1721589041548,-500.0,0.00013698,2]
[332858263,1721589041557,-500.0,0.00013698,2]
[332858264,1721589041566,-500.0,0.00013698,2]
[332858265,1721589041576,-500.0,0.00013698,2]
[332858266,1721589041590,-223.1,0.00013698,2]
[332858267,1721589041600,-500.0,0.00013698,2]
[332858268,1721589041609,-500.0,0.00013698,2]
[332858269,1721589041620,-500.0,0.00013698,2]
[332858270,1721589041630,-500.0,0.00013698,2]
[332858271,1721589041640,-515.52653776,0.00013698,2]
[332858272,1721589041650,-500.0,0.00013698,2]
[332858273,1721589041659,-638.5,0.00013698,2]
[332858274,1721589041670,-500.0,0.00013698,2]
[332858275,1721589041680,-500.0,0.00013698,2]
[332858276,1721589041694,-500.0,0.00013698,2]
[332858277,1721589041704,-500.0,0.00013698,2]
[332858278,1721589041713,-152.01,0.00013698,2]
[332858279,1721589041723,-500.0,0.00013698,2]
[332858280,1721589041732,-417.62,0.00013698,2]
[332858281,1721589041741,-318.39,0.00013698,2]
[332858282,1721589041751,-500.0,0.00013698,2]
[332858283,1721589041760,-502.05371275,0.00013698,2]
[332858284,1721589041769,-389.65926264,0.00013698,2]
[332858285,1721589041779,-500.0,0.00013698,2]
[332858286,1721589041788,-500.0,0.00013698,2]
[332858287,1721589041798,-500.0,0.00013698,2]
[332858288,1721589041807,-500.0,0.00013698,2]
[332858289,1721589041816,-500.0,0.00013698,2]
[332858290,1721589041825,-500.0,0.00013698,2]
[332858291,1721589041834,-500.0,0.00013698,2]
[332858292,1721589041844,-500.0,0.00013698,2]
[332858293,1721589041853,-500.0,0.00013698,2]
[332858294,1721589041862,-500.0,0.00013698,2]
[332858295,1721589041871,-627.68,0.00013698,2]
[332858296,1721589041880,-500.0,0.00013698,2]
[332858297,1721589041889,-500.0,0.00013698,2]
[332858298,1721589041898,-375.88,0.00013698,2]
[332858299,1721589041907,-500.0,0.00013698,2]
[332858300,1721589041917,-500.0,0.00013698,2]
[332858301,1721589041926,-500.0,0.00013698,2]
[332858302,1721589041938,-500.0,0.00013698,2]
[332858303,1721589041947,-500.0,0.00013698,2]
[332858304,1721589041956,-500.0,0.00013698,2]
[332858305,1721589041966,-500.0,0.00013698,2]
[332858306,1721589041976,-500.0,0.00013698,2]
[332858307,1721589041987,-505.78855562,0.00013698,2]
[332858308,1721589041997,-500.0,0.00013698,2]
[332858309,1721589042007,-500.0,0.00013698,2]
[332858310,1721589042017,-500.0,0.00013698,2]
[332858311,1721589042027,-500.0,0.00013698,2]
[332858312,1721589042038,-500.0,0.00013698,2]
[332858313,1721589042047,-500.0,0.00013698,2]
[332858314,1721589042058,-500.0,0.00013698,2]
[332858315,1721589042067,-500.0,0.00013698,2]
[332858316,1721589042076,-500.0,0.00013698,2]
[332858317,1721589042086,-500.0,0.00013698,2]
[332858318,1721589042095,-500.0,0.00013698,2]
[332858319,1721589042105,-500.0,0.00013698,2]
[332858320,1721589042115,-500.0,0.00013698,2]
[332858321,1721589042124,-500.0,0.00013698,2]
[332858322,1721589042134,-248.43,0.00013698,2]
[332858323,1721589042144,-315.2,0.00013698,2]
[332858324,1721589042153,-598.68,0.00013698,2]
[332858325,1721589042162,-153.92,0.00013698,2]
[332858326,1721589042172,-500.0,0.00013698,2]
[332858327,1721589042182,-529.69,0.00013698,2]
[332858328,1721589042193,-588.81283957,0.00013698,2]
[332858329,1721589042203,-500.0,0.00013698,2]
[332858330,1721589042215,-500.0,0.00013698,2]
[332858331,1721589042225,-500.0,0.00013698,2]
[332858332,1721589042236,-500.0,0.00013698,2]
[332858333,1721589042247,-500.0,0.00013698,2]
[332858334,1721589042255,-500.0,0.00013698,2]
[332858335,1721589042265,-521.24,0.00013698,2]
[332858336,1721589042274,-539.82,0.00013698,2]
[332858337,1721589042283,-170.36782242,0.00013698,2]
[332858338,1721589042294,-500.0,0.00013698,2]
[332858339,1721589042303,-500.0,0.00013698,2]
[332858340,1721589042313,-500.0,0.00013698,2]
[332858341,1721589042324,-500.0,0.00013698,2]
[332858342,1721589042335,-500.0,0.00013698,2]
[332858343,1721589042347,-500.0,0.00013698,2]
[332858344,1721589042356,-234.00721895,0.00013698,2]
[332858345,1721589042366,-500.0,0.00013698,2]
[332858347,1721589042375,-500.16477689,0.00013698,2]
[332858349,1721589042385,-500.0,0.00013698,2]
[332858350,1721589042394,-524.27020938,0.00013698,2]
[332858352,1721589042403,-500.0,0.00013698,2]
[332858354,1721589042413,-500.0,0.00013698,2]
[332858356,1721589042424,-434.1341042,0.00013698,2]
[332858358,1721589042434,-288.15609103,0.00013698,2]
[332858359,1721589042445,-500.0,0.00013698,2]
[332858361,1721589042455,-617.69,0.00013698,2]
[332858364,1721589042464,-500.0,0.00013698,2]
[332858365,1721589042474,-525.49173652,0.00013698,2]
[332858366,1721589042483,-500.0,0.00013698,2]
[332858368,1721589042492,-531.70213675,0.00013698,2]
[332858369,1721589042502,-500.0,0.00013698,2]
[332858370,1721589042511,-500.0,0.00013698,2]
[332858372,1721589042521,-500.0,0.00013698,2]
[332858374,1721589042530,-500.0,0.00013698,2]
[332858376,1721589042539,-500.0,0.00013698,2]
[332858378,1721589042549,-238.36208966,0.00013698,2]
[332858380,1721589042558,-500.0,0.00013698,2]
[332858382,1721589042569,-500.0,0.00013698,2]
[332858383,1721589042580,-500.0,0.00013698,2]
[332858384,1721589042593,-500.0,0.00013698,2]
[332858396,1721589042771,-500.0,0.00013698,2]
[332858398,1721589042782,-500.0,0.00013698,2]
[332858400,1721589042792,-500.0,0.00013698,2]
[332858402,1721589042803,-500.0,0.00013698,2]
[332858404,1721589042812,-500.0,0.00013698,2]
[332858406,1721589042822,-500.0,0.00013698,2]
[332858407,1721589042831,-511.95798033,0.00013698,2]
[332858409,1721589042841,-500.0,0.00013698,2]
[332858411,1721589042851,-500.0,0.00013698,2]
[332858412,1721589042860,-169.97,0.00013698,2]
[332858413,1721589042869,-500.0,0.00013698,2]
[332858414,1721589042879,-500.0,0.00013698,2]
[332858415,1721589042889,-500.0,0.00013698,2]
[332858416,1721589042899,-500.43250489,0.00013698,2]
[332858417,1721589042909,-500.0,0.00013698,2]
[332858418,1721589042921,-500.0,0.00013698,2]
[332858419,1721589042932,-500.0,0.00013698,2]
[332858420,1721589042943,-506.8,0.00013698,2]
[332858421,1721589042953,-240.09110902,0.00013698,2]
[332858422,1721589042962,-500.0,0.00013698,2]
[332858423,1721589042971,-500.0,0.00013698,2]
[332858424,1721589042980,-586.08618118,0.00013698,2]
[332858425,1721589042989,-449.58184146,0.00013698,2]
[332858426,1721589043000,-162.26745544,0.00013698,2]
[332858427,1721589043009,-566.84723168,0.00013698,2]
[332858428,1721589043019,-181.62474517,0.00013698,2]
[332858429,1721589043030,-500.0,0.00013698,2]
[332858430,1721589043040,-500.0,0.00013698,2]
[332858431,1721589043050,-500.0,0.00013698,2]
[332858432,1721589043059,-500.0,0.00013698,2]
[332858433,1721589043069,-235.06715889,0.00013698,2]
[332858434,1721589043078,-500.0,0.00013698,2]
[332858435,1721589043087,-500.0,0.00013698,2]
[332858436,1721589043097,-550.0,0.00013698,2]
[332858437,1721589043106,-500.0,0.00013698,2]
[332858438,1721589043118,-500.0,0.00013698,2]
[332858439,1721589043127,-199.94485775,0.00013698,2]
[332858440,1721589043137,-262.78079801,0.00013698,2]
[332858441,1721589043146,-500.0,0.00013698,2]
[332858442,1721589043156,-500.0,0.00013698,2]
[332858443,1721589043167,-500.0,0.00013698,2]
[332858444,1721589043177,-500.0,0.00013698,2]
[332858445,1721589043188,-500.0,0.00013698,2]
[332858446,1721589043198,-500.0,0.00013698,2]
[332858447,1721589043208,-500.0,0.00013698,2]
[332858448,1721589043218,-500.0,0.00013698,2]
[332858449,1721589043229,-500.0,0.00013698,2]
[332858450,1721589043239,-500.0,0.00013698,2]
[332858451,1721589043251,-500.0,0.00013698,2]
[332858452,1721589043260,-500.0,0.00013698,2]
[332858453,1721589043270,-500.0,0.00013698,2]
[332858454,1721589043281,-500.0,0.00013698,2]
[332858456,1721589043291,-500.0,0.00013698,2]
[332858458,1721589043301,-500.0,0.00013698,2]
[332858460,1721589043311,-500.0,0.00013698,2]
[332858461,1721589043321,-500.0,0.00013698,2]
[332858462,1721589043332,-500.0,0.00013698,2]
[332858463,1721589043343,-500.0,0.00013698,2]
[332858464,1721589043353,-500.0,0.00013698,2]
[332858465,1721589043365,-500.0,0.00013698,2]
[332858466,1721589043375,-500.0,0.00013698,2]
[332858467,1721589043386,-553.24054392,0.00013698,2]
[332858468,1721589043397,-500.0,0.00013698,2]
[332858469,1721589043407,-500.0,0.00013698,2]
[332858470,1721589043416,-500.0,0.00013698,2]
[332858471,1721589043426,-500.0,0.00013698,2]
[332858472,1721589043435,-500.0,0.00013698,2]
[332858473,1721589043446,-500.0,0.00013698,2]
[332858474,1721589043456,-500.0,0.00013698,2]
[332858475,1721589043466,-500.0,0.00013698,2]
[332858476,1721589043476,-500.0,0.00013698,2]
[332858477,1721589043485,-500.0,0.00013698,2]
[332858478,1721589043495,-302.7592667,0.00013699,2]
[332858479,1721589043505,-156.381407,0.00013808,2]
[332858480,1721589043515,-252.727714,0.00013808,2]
[332858481,1721589043525,-243.683674,0.00013808,2]
[332858482,1721589043535,-230.109342,0.00013808,2]
[332858483,1721589043544,-183.418748,0.00013808,2]
[332858484,1721589043554,-343.48404821,0.00013872,2]
[332858485,1721589043563,-12078.1969213,0.00013962,2]
[332858486,1721589043572,-500.0,0.00013971,2]
[332858487,1721589043584,-500.0,0.00013972,2]
[332858488,1721589043596,-500.0,0.00013972,2]
[332858489,1721589043606,-433.51979215,0.00013972,2]
[332858490,1721589043615,-500.0,0.00013972,2]
[332858491,1721589043625,-500.0,0.00013972,2]
[332858492,1721589043635,-449.60475836,0.00013972,2]
[332858493,1721589043644,-500.0,0.00013972,2]
[332858494,1721589043653,-500.0,0.00013972,2]
[332858495,1721589043664,-500.0,0.00013972,2]
[332858496,1721589043673,-500.0,0.00013972,2]
[332858497,1721589043682,-500.0,0.00013972,2]
[332858498,1721589043693,-500.0,0.00013972,2]
[332858499,1721589043703,-500.0,0.00013972,2]
[332858500,1721589043713,-500.0,0.00013972,2]
[332858501,1721589043723,-500.0,0.00013972,2]
[332858502,1721589043733,-509.33,0.00013972,2]
[332858503,1721589043743,-500.0,0.00013972,2]
[332858504,1721589043752,-238.47779164,0.00013972,2]
[332858505,1721589043761,-209.24527962,0.00013972,2]
[332858506,1721589043770,-500.0,0.00013972,2]
[332858507,1721589043779,-326.86,0.00013972,2]
[332858508,1721589043788,-500.0,0.00013972,2]
[332858509,1721589043798,-579.68,0.00013972,2]
[332858510,1721589043807,-500.0,0.00013972,2]
[332858511,1721589043816,-500.0,0.00013972,2]
[332858512,1721589043826,-185.82,0.00013972,2]
[332858513,1721589043836,-500.0,0.00013972,2]
[332858514,1721589043845,-500.0,0.00013972,2]
[332858515,1721589043855,-614.25,0.00013972,2]
[332858516,1721589043864,-500.0,0.00013972,2]
[332858517,1721589043873,-248.2,0.00013972,2]
[332858518,1721589043883,-500.0,0.00013972,2]
[332858519,1721589043892,-500.0,0.00013972,2]
[332858520,1721589043902,-175.72896542,0.00013972,2]
[332858521,1721589043911,-287.8740586,0.00013972,2]
[332858522,1721589043921,-500.0,0.00013972,2]
[332858523,1721589043930,-450.27438715,0.00013972,2]
[332858524,1721589043940,-500.0,0.00013972,2]
[332858525,1721589043949,-194.11,0.00013972,2]
[332858526,1721589043959,-437.57,0.00013972,2]
[332858527,1721589043968,-600.4,0.00013972,2]
[332858528,1721589043978,-500.0,0.00013972,2]
[332858529,1721589043987,-12078.1969213,0.0001399,2]
[332858530,1721589043996,-31037.00370899,0.00014,2]
[332858531,1721589044006,-500.0,0.00014246,2]
[332858532,1721589044015,-500.0,0.00014246,2]
[332858533,1721589044024,-500.0,0.00014246,2]
[332858534,1721589044033,-500.0,0.00014246,2]
[332858535,1721589044043,-377.65,0.00014246,2]
[332858536,1721589044053,-500.0,0.00014246,2]
[332858537,1721589044062,-301.69324672,0.00014246,2]
[332858538,1721589044071,-500.0,0.00014246,2]
[332858539,1721589044080,-500.0,0.00014246,2]
[332858540,1721589044090,-500.0,0.00014246,2]
[332858541,1721589044099,-500.0,0.00014246,2]
[332858542,1721589044109,-500.0,0.00014246,2]
[332858543,1721589044118,-500.0,0.00014246,2]
[332858544,1721589044127,-750.0,0.00014247,2]
[332858545,1721589044136,-701.165131,0.00014247,2]
[332858546,1721589044145,-343.48404817,0.00014306,2]
[332858547,1721589044155,-153.0,0.000144,2]
[332858548,1721589044166,-153.0,0.000144,2]
[332858549,1721589044176,-153.0,0.00014441,2]
[332858550,1721589044185,-500.0,0.0001452,2]
[332858551,1721589044196,-500.0,0.0001452,2]
[332858552,1721589044206,-500.0,0.0001452,2]
[332858553,1721589044215,-500.0,0.0001452,2]
[332858554,1721589044224,-500.0,0.0001452,2]
[332858555,1721589044233,-500.0,0.0001452,2]
[332858556,1721589044242,-229.93,0.0001452,2]
[332858557,1721589044251,-500.0,0.0001452,2]
[332858558,1721589044260,-614.82719603,0.0001452,2]
[332858559,1721589044270,-173.03,0.0001452,2]
[332858560,1721589044279,-154.72922386,0.0001469,2]
[332858561,1721589044288,-1519.35514429,0.0001469,2]
[332858562,1721589044298,-526.81626492,0.0001469,2]
[332858563,1721589044307,-343.48404817,0.00014741,2]
[332858564,1721589044316,-153.0,0.00014741,2]
[332858565,1721589044325,-153.0,0.00014741,2]
[332858566,1721589044335,-500.0,0.00014782,2]
[332858567,1721589044344,-1408.0,0.00014783,2]
[332858568,1721589044354,-1540.16106776,0.00014784,2]
[332858569,1721589044363,-573.353523,0.00014791,2]
[332858570,1721589044374,-566.80909548,0.00014792,2]
[332858571,1721589044383,-502.81409546,0.00014792,2]
[332858572,1721589044392,-500.0,0.00014794,2]
[332858573,1721589044401,-311.64,0.00014794,2]
[332858574,1721589044410,-500.0,0.00014794,2]
[332858575,1721589044419,-500.0,0.00014794,2]
[332858576,1721589044429,-165.0,0.00014795,2]
[332858577,1721589044438,-153.0,0.00014795,2]
[332858578,1721589044451,-309.5378013,0.00014795,2]
[332858579,1721589044460,-306.0,0.00014795,2]
[332858580,1721589044469,-153.0,0.00014795,2]
[332858581,1721589044478,-153.0,0.00014795,2]
[332858582,1721589044487,-307.7499115,0.00014878,2]
[332858583,1721589044496,-206.5463282,0.00014878,2]
[332858584,1721589044506,-153.0,0.00014878,2]
[332858585,1721589044514,-153.0,0.00014878,2]
[332858586,1721589044524,-1000.0,0.00015,5]
[332858587,1721589044533,-195.8633417,0.00015,2]
[332858588,1721589044543,-287.96313717,0.00015,2]
[332858589,1721589044552,-154.72922386,0.00015,2]
[332858590,1721589044561,-1825.51894106,0.00015,2]
[332858591,1721589044571,-2844.20261952,0.00015,2]
[332858592,1721589044580,-165.28,0.00015068,2]
[332858593,1721589044593,-500.0,0.00015068,2]
[332858594,1721589044602,-500.0,0.00015068,2]
[332858595,1721589044611,-343.48404817,0.00015175,2]
[332858596,1721589044620,-367.35615468,0.00015203,2]
[332858597,1721589044631,-215.49624,0.00015313,2]
[332858598,1721589044640,-215.49624,0.00015313,2]
[332858599,1721589044649,-12078.1969213,0.00015313,2]
[332858600,1721589044658,-4674.12983223,0.00015335,2]
[332858601,1721589044669,-600.0,0.00015336,2]
[332858602,1721589044678,-500.0,0.00015342,2]
[332858603,1721589044687,-500.0,0.00015342,2]
[332858604,1721589044698,-642.05896897,0.00015369,2]
[332858605,1721589044708,-151.0,0.00015398,2]
[332858606,1721589044718,-151.0,0.00015398,2]
[332858607,1721589044727,-150.112233,0.000154,3]
[332858608,1721589044737,-966.10767557,0.00015496,2]
[332858609,1721589044747,-24156.3938425,0.00015496,2]
[332858610,1721589044757,-150.112233,0.000155,3]
[332858611,1721589044766,-184.277006,0.00015506,2]
[332858612,1721589044776,-151.0,0.00015506,2]
[332858613,1721589044785,-151.0,0.00015506,2]
[332858614,1721589044795,-227.663254,0.00015506,2]
[332858615,1721589044805,-227.663254,0.00015506,2]
[332858616,1721589044814,-151.0,0.00015506,2]
[332858617,1721589044823,-245.922922,0.00015506,2]
[332858618,1721589044834,-151.0,0.00015506,2]
[332858619,1721589044843,-151.0,0.00015506,2]
[332858620,1721589044853,-151.0,0.00015506,2]
[332858621,1721589044863,-151.0,0.00015506,2]
[332858622,1721589044873,-151.0,0.00015506,2]
[332858623,1721589044882,-151.0,0.00015506,2]
[332858624,1721589044891,-151.0,0.00015506,2]
[332858625,1721589044901,-151.0,0.00015506,2]
[332858626,1721589044910,-151.0,0.00015506,2]
[332858627,1721589044919,-151.0,0.00015506,2]
[332858628,1721589044929,-233.236532,0.00015506,2]
[332858629,1721589044939,-151.0,0.00015506,2]
[332858630,1721589044950,-215.49624,0.00015506,2]
[332858631,1721589044959,-215.49624,0.00015506,2]
[332858632,1721589044968,-151.0,0.00015506,2]
[332858633,1721589044978,-151.0,0.00015506,2]
[332858634,1721589044987,-39854.10567836,0.00015506,2]
[332858635,1721589045215,-1447.66468492,0.00015506,2]
[332858636,1721589045281,-2636.99928073,0.00015506,2]
[332858637,1721589045292,-2073.353523,0.00015506,2]
[332858638,1721589045309,-4382.58941013,0.00015506,2]
[332858665,1721589940147,-155.70429949,9.999e-05,2]
[332858666,1721589940169,-526.40635673,9.999e-05,2]
[332858667,1721589940192,-609.6965354,0.00010088,2]
[332858668,1721589940215,-250.0,0.00010101,2]
[332858669,1721589940240,-250.0,0.00010798,2]
[332858670,1721589940265,-250.0,0.00010828,2]
[332858671,1721589940289,-250.0,0.00010858,2]
[332858672,1721589940312,-10.10835471,0.00010858,2]
[332858674,1721590039105,-179.71977966,9.999e-05,2]
[332858675,1721590039128,-120.28022034,0.00010113,2]
[332858676,1721590050265,-704.17780826,0.00010113,2]
[332858677,1721590050286,-188.9700164,0.00010152,2]
[332858678,1721590050308,-300.0,0.00010857,2]
[332858679,1721590050331,-300.0,0.00010857,2]
[332858680,1721590050352,-227.99689378,0.00010858,2]
[332858687,1721590151109,-547.3958726,9.88e-05,2]
[332858688,1721590151132,-359.4112535,9.944e-05,2]
[332858689,1721590151156,-300.0,0.00010857,2]
[332858690,1721590151177,-1397.30630473,0.00010858,2]
[332858691,1721590151197,-154.72922386,0.00010858,2]
[332858692,1721590151218,-2106.31551891,0.00010858,2]
[332858693,1721590151240,-4707.01308214,0.00010858,2]
[332858694,1721590151261,-154.72922386,0.00010858,2]
[332858695,1721590151282,-154.72922386,0.00010858,2]
[332858696,1721590151305,-1461.69783654,0.00010858,2]
[332858697,1721590152177,-2319.61922255,0.00010858,2]
[332858698,1721590152199,-19440.5755278,0.00010858,2]
[332858699,1721590152220,-3096.52664659,0.00010858,2]
[332858700,1721590152243,-242.69373317,0.00010858,2]
[332858701,1721590152267,-250.0,0.00010887,2]
[332858702,1721590152290,-250.0,0.00010917,2]
[332858703,1721590152316,-250.0,0.00010946,2]
[332858704,1721590152337,-391.3144647,0.00010959,2]
[332858705,1721590152362,-513.42,0.00010959,2]
[332858706,1721590152387,-427.85,0.00010959,2]
[332858707,1721590152409,-356.55,0.00010959,2]
[332858708,1721590152434,-297.12,0.00010959,2]
[332858709,1721590152464,-247.6,0.00010959,2]
[332858710,1721590152494,-206.33,0.00010959,2]
[332858711,1721590152520,-171.95,0.00010959,2]
[332858712,1721590152544,-859.75,0.00010959,2]
[332858713,1721590152576,-250.0,0.00010976,2]
[332858714,1721590152603,-250.0,0.00011006,2]
[332858715,1721590152631,-250.0,0.00011035,2]
[332858716,1721590152659,-250.0,0.00011065,2]
[332858717,1721590152685,-250.0,0.00011094,2]
[332858718,1721590152713,-250.0,0.00011124,2]
[332858719,1721590152742,-250.0,0.00011154,2]
[332858720,1721590152768,-250.0,0.00011183,2]
[332858721,1721590152796,-250.0,0.00011213,2]
[332858722,1721590152823,-250.0,0.00011243,2]
[332858723,1721590152850,-250.0,0.00011272,2]
[332858724,1721590152877,-250.0,0.00011302,2]
[332858725,1721590152906,-250.0,0.00011331,2]
[332858726,1721590152934,-250.0,0.00011361,2]
[332858727,1721590152964,-24900.0,0.00011747,2]
[332858728,1721590152991,-420.0,0.00011943,2]
[332858729,1721590153019,-2381.9808696,0.00012315,2]
[332858730,1721590153047,-2339.59569694,0.000129,2]
[332858731,1721590153073,-2339.59569693,0.000129,2]
[332858732,1721590153102,-587.0,0.00013137,2]
[332858733,1721590153130,-5020.06612966,0.00013688,2]
[332858734,1721590168132,-4830.09233154,0.00013688,2]
[332858735,1721590187702,1262.33713894,0.00013161,2]
[332858736,1721590188225,1291.95177702,0.00013161,2]
[332858919,1721590238146,-814.36374189,0.00013161,2]
[332858920,1721590238157,-1625.30319851,0.00013161,2]
[332858921,1721590238168,-282.13930992,0.00013161,2]
[332858922,1721590238177,-154.74467129,0.00013161,2]
[332858923,1721590238186,-4396.96101458,0.00013161,2]
[332858924,1721590238234,-2845.67567444,0.00013161,2]
[332858931,1721590240300,-12197.93883878,0.00013161,2]
[332858932,1721590240310,-154.74467129,0.00013161,2]
[332858933,1721590240320,-4707.01308214,0.00013161,2]
[332858934,1721590240331,-4707.01308214,0.00013161,2]
[332858935,1721590240341,-1583.5011762,0.00013688,2]
[332858936,1721590240351,-11433.6596374,0.00013689,2]
[332858937,1721590240360,-506.89742752,0.00013698,2]
[332858938,1721590240370,-500.0,0.00013698,2]
[332858939,1721590240380,-352.88022747,0.00013698,2]
[332858940,1721590240390,-500.0,0.00013698,2]
[332858941,1721590240399,-500.0,0.00013698,2]
[332858942,1721590240409,-500.0,0.00013698,2]
[332858943,1721590240418,-435.93,0.00013698,2]
[332858944,1721590240427,-632.04,0.00013698,2]
[332858945,1721590240437,-500.0,0.00013698,2]
[332858946,1721590240450,-500.0,0.00013698,2]
[332858947,1721590240460,-500.0,0.00013698,2]
[332858948,1721590240470,-327.41,0.00013698,2]
[332858949,1721590240479,-500.0,0.00013698,2]
[332858950,1721590240488,-500.0,0.00013698,2]
[332858951,1721590240497,-223.1,0.00013698,2]
[332858952,1721590240507,-614.25,0.00013698,2]
[332858953,1721590240516,-500.0,0.00013698,2]
[332858954,1721590240525,-152.01,0.00013698,2]
[332858955,1721590240535,-417.62,0.00013698,2]
[332858956,1721590240545,-318.39,0.00013698,2]
[332858957,1721590240554,-500.0,0.00013698,2]
[332858958,1721590240564,-500.0,0.00013698,2]
[332858959,1721590240574,-500.0,0.00013698,2]
[332858960,1721590240583,-500.0,0.00013698,2]
[332858961,1721590240594,-500.0,0.00013698,2]
[332858962,1721590240603,-627.68,0.00013698,2]
[332858963,1721590240614,-500.0,0.00013698,2]
[332858964,1721590240624,-500.0,0.00013698,2]
[332858965,1721590240634,-554.8,0.00013698,2]
[332858966,1721590240644,-500.0,0.00013698,2]
[332858967,1721590240653,-500.0,0.00013698,2]
[332858968,1721590240663,-194.11,0.00013698,2]
[332858969,1721590240672,-500.0,0.00013698,2]
[332858970,1721590240682,-248.43,0.00013698,2]
[332858971,1721590240693,-315.2,0.00013698,2]
[332858972,1721590240704,-588.81283957,0.00013698,2]
[332858973,1721590240714,-500.0,0.00013698,2]
[332858974,1721590240723,-500.0,0.00013698,2]
[332858975,1721590240734,-500.0,0.00013698,2]
[332858976,1721590240744,-500.0,0.00013698,2]
[332858977,1721590240753,-527.61,0.00013698,2]
[332858978,1721590240762,-500.0,0.00013698,2]
[332858979,1721590240771,-500.0,0.00013698,2]
[332858980,1721590240781,-505.89,0.00013698,2]
[332858981,1721590240791,-500.0,0.00013698,2]
[332858982,1721590240800,-500.0,0.00013698,2]
[332858983,1721590240809,-500.0,0.00013698,2]
[332858984,1721590240819,-500.0,0.00013698,2]
[332858985,1721590240829,-514.46089773,0.00013698,2]
[332858986,1721590240839,-500.0,0.00013698,2]
[332858987,1721590240848,-244.8,0.00013698,2]
[332858988,1721590240858,-500.0,0.00013698,2]
[332858989,1721590240867,-509.33,0.00013698,2]
[332858990,1721590240877,-500.0,0.00013698,2]
[332858991,1721590240886,-500.0,0.00013698,2]
[332858992,1721590240895,-500.0,0.00013698,2]
[332858993,1721590240905,-200.9,0.00013698,2]
[332858994,1721590240916,-500.0,0.00013698,2]
[332858995,1721590240927,-500.0,0.00013698,2]
[332858996,1721590240937,-511.22,0.00013698,2]
[332858997,1721590240952,-500.0,0.00013698,2]
[332858998,1721590240963,-500.0,0.00013698,2]
[332858999,1721590240975,-500.0,0.00013698,2]
[332859000,1721590240986,-500.0,0.00013698,2]
[332859001,1721590240996,-500.0,0.00013698,2]
[332859002,1721590241006,-500.0,0.00013698,2]
[332859003,1721590241016,-500.0,0.00013698,2]
[332859004,1721590241025,-500.0,0.00013698,2]
[332859005,1721590241034,-500.0,0.00013698,2]
[332859006,1721590241045,-375.88,0.00013698,2]
[332859007,1721590241055,-396.79306217,0.00013698,2]
[332859008,1721590241065,-162.26745544,0.00013698,2]
[332859009,1721590241074,-492.99487891,0.00013698,2]
[332859010,1721590241084,-500.0,0.00013698,2]
[332859011,1721590241093,-500.0,0.00013698,2]
[332859012,1721590241102,-181.62474517,0.00013698,2]
[332859013,1721590241112,-500.0,0.00013698,2]